bitfinex-derivatives/quotes_BNBF0:USTF0_20250715
["timestamp","ask_amount","ask_price","bid_price","bid_amount"]
[1752572454308,0.98894171,678.95,678.15,0.25637531]
[1752572456114,0.98894171,678.93,678.15,0.25637531]
[1752572456309,0.98894171,678.92,678.15,0.25637531]
[1752572456711,0.98894171,678.82,678.21,1.31886276]
[1752572457514,0.98894171,678.82,678.22,1.31886276]
[1752572458311,0.98894171,678.81,678.23,1.31886276]
[1752572459315,0.98894171,678.8,678.24,1.31886276]
[1752572460110,0.98894171,678.8,678.23,1.31886276]
[1752572460314,0.98894171,678.78,678.22,1.31886276]
[1752572460514,0.98894171,678.78,678.21,1.31886276]
[1752572460710,0.98894171,678.81,678.16,1.31886276]
[1752572461115,0.98894171,678.86,678.15,0.25637531]
[1752572463418,0.98894171,678.8,678.15,0.25637531]
[1752572463719,0.98894171,678.77,678.15,0.25637531]
[1752572464217,0.98894171,678.78,678.15,0.25637531]
[1752572464722,0.98894171,678.82,678.15,0.25637531]
[1752572465222,0.98894171,678.83,678.15,0.25637531]
[1752572465726,0.98894171,678.84,678.15,0.25637531]
[1752572466920,0.98894171,678.85,678.15,0.25637531]
[1752572467419,0.98894171,678.81,678.15,0.25637531]
[1752572467719,0.98894171,678.79,678.15,0.25637531]
[1752572468118,0.98894171,678.8,678.15,0.25637531]
[1752572469125,0.98894171,678.81,678.15,0.25637531]
[1752572470121,0.98894171,678.82,678.15,0.25637531]
[1752572470725,0.98894171,678.8,678.15,0.25637531]
[1752572471122,0.98894171,678.81,678.15,0.25637531]
[1752572473227,0.98894171,678.82,678.15,0.25637531]
[1752572474125,0.98894171,678.81,678.15,0.25637531]
[1752572474527,0.98894171,678.79,678.15,0.25637531]
[1752572474726,1.31435911,678.95,678.15,0.25637531]
[1752572474727,0.98894171,678.78,678.15,0.25637531]
[1752572474924,0.98894171,678.8,678.15,0.25637531]
[1752572475223,0.98894171,678.83,678.15,0.25637531]
[1752572475525,0.98894171,678.86,678.15,0.25637531]
[1752572476928,0.98894171,678.87,678.15,0.25637531]
[1752572477328,0.98894171,678.91,678.15,0.25637531]
[1752572477825,0.98894171,678.9,678.15,0.25637531]
[1752572478025,0.98894171,678.91,678.15,0.25637531]
[1752572480428,0.98894171,678.86,678.15,0.25637531]
[1752572482132,0.98894171,678.87,678.15,0.25637531]
[1752572484834,0.98894171,678.84,678.15,1.24694415]
[1752572485031,0.98894171,678.86,678.15,1.24694415]
[1752572485535,0.98894171,678.87,678.17,0.99056884]
[1752572488138,0.98894171,678.87,678.18,0.99056884]
[1752572491938,0.98894171,678.86,678.19,0.99056884]
[1752572493238,0.98894171,678.85,678.2,0.99056884]
[1752572494441,0.98894171,678.86,678.2,0.99056884]
[1752572494738,0.98894171,678.85,678.2,0.99056884]
[1752572494939,0.98894171,678.83,678.21,0.99056884]
[1752572495142,0.98894171,678.83,678.22,0.99056884]
[1752572495740,0.98894171,678.83,678.21,0.99056884]
[1752572496042,0.98894171,678.83,678.22,0.99056884]
[1752572496240,0.98894171,678.89,678.17,0.99056884]
[1752572496438,0.98894171,678.92,678.15,1.24694415]
[1752572499146,0.98894171,678.91,678.16,0.99056884]
[1752572499344,0.98894171,678.92,678.16,0.99056884]
[1752572500147,0.98894171,678.91,678.16,0.99056884]
[1752572500848,0.98894171,678.87,678.15,0.25637531]
[1752572502350,0.98894171,678.86,678.15,0.25637531]
[1752572505248,0.98894171,678.85,678.15,0.25637531]
[1752572505447,0.98894171,678.86,678.15,0.25637531]
[1752572506147,0.98894171,678.83,678.15,1.24694415]
[1752572506352,0.98894171,678.77,678.19,0.99056884]
[1752572508247,0.98894171,678.77,678.2,0.99056884]
[1752572510148,0.98894171,678.76,678.2,0.99056884]
[1752572511751,0.98894171,678.75,678.21,0.99056884]
[1752572512749,0.98894171,678.75,678.22,0.99056884]
[1752572513954,0.98894171,678.73,678.23,0.99056884]
[1752572514356,0.98894171,678.74,678.23,0.99056884]
[1752572515054,0.98894171,678.73,678.23,0.99056884]
[1752572515453,0.98894171,678.72,678.24,0.99056884]
[1752572517359,0.98894171,678.83,678.16,0.99056884]
[1752572517960,1.31435911,679.01,678.02,0.25645372]
[1752572518160,0.99017384,678.83,678.16,0.99292414]
[1752572519163,0.99017384,678.82,678.17,0.99292414]
[1752572521164,0.99017384,678.85,678.15,0.99292414]
[1752572521666,0.99017384,678.84,678.15,0.99292414]
[1752572521861,0.99017384,678.83,678.16,0.99292414]
[1752572522565,0.25645372,678.89,678.02,0.25645372]
[1752572522566,0.99017384,678.75,678.09,0.99292414]
[1752572523262,0.99017384,678.75,678.02,0.25645372]
[1752572523263,0.99017384,678.74,678.1,0.99292414]
[1752572523566,0.99017384,678.7,678.06,0.99292414]
[1752572524165,0.99017384,678.72,678.04,0.99292414]
[1752572525368,0.99017384,678.73,678.04,0.99292414]
[1752572527272,0.99017384,678.73,678.03,0.99292414]
[1752572527872,0.99017384,678.74,678.03,0.99292414]
[1752572528173,0.99017384,678.73,678.03,0.99292414]
[1752572528367,0.99017384,678.74,678.03,0.99292414]
[1752572529874,0.99017384,678.74,678.02,1.24937786]
[1752572530277,0.99017384,678.75,678.02,1.24937786]
[1752572531078,0.99017384,678.73,678.03,0.99292414]
[1752572531774,0.99017384,678.71,678.05,0.99292414]
[1752572532477,0.99017384,678.71,678.04,0.99292414]
[1752572533173,0.99017384,678.71,678.05,0.99292414]
[1752572533377,0.99017384,678.71,678.04,0.99292414]
[1752572533977,0.99017384,678.68,678.06,0.99292414]
[1752572535374,0.99017384,678.69,678.06,0.99292414]
[1752572538482,0.99017384,678.69,678.05,0.99292414]
[1752572539184,0.99017384,678.68,678.06,0.99292414]
[1752572539778,0.99017384,678.66,678.08,0.99292414]
[1752572539980,0.99017384,678.65,678.08,0.99292414]
[1752572540479,0.99017384,678.66,678.08,0.99292414]
[1752572541680,0.99017384,678.66,678.07,0.99292414]
[1752572542284,0.99017384,678.67,678.07,0.99292414]
[1752572545082,0.99017384,678.66,678.07,0.99292414]
[1752572546185,0.99017384,678.67,678.07,0.99292414]
[1752572546986,0.99017384,678.7,678.05,0.99292414]
[1752572550488,0.99017384,678.72,678.04,0.99292414]
[1752572551283,0.99017384,678.71,678.04,0.99292414]
[1752572554091,0.99017384,678.71,678.05,0.99292414]
[1752572554891,0.99017384,678.71,678.04,0.99292414]
[1752572555088,0.99017384,678.7,678.05,0.99292414]
[1752572555794,0.99017384,678.71,678.04,0.99292414]
[1752572556194,0.99017384,678.71,678.05,0.99292414]
[1752572556991,0.99017384,678.69,678.06,0.99292414]
[1752572557192,0.99017384,678.68,678.06,0.99292414]
[1752572558794,0.99017384,678.64,678.02,0.25645372]
[1752572559294,0.99017384,678.64,678.01,0.99292414]
[1752572560490,0.99017384,678.62,678.02,0.99292414]
[1752572561292,0.99017384,678.63,678.01,0.99292414]
[1752572561592,0.99017384,678.62,677.96,0.99292414]
[1752572563293,0.99017384,678.63,677.95,0.99292414]
[1752572563899,0.99017384,678.62,677.96,0.99292414]
[1752572564297,0.99017384,678.62,677.95,0.99292414]
[1752572564699,0.99017384,678.63,677.95,0.99292414]
[1752572565196,0.99017384,678.62,677.95,0.99292414]
[1752572565498,0.99017384,678.63,677.95,0.99292414]
[1752572565996,0.99017384,678.64,677.92,0.99292414]
[1752572566295,0.99017384,678.64,677.91,0.99292414]
[1752572566493,0.99017384,678.66,677.9,0.99292414]
[1752572566696,0.99017384,678.63,677.88,0.99292414]
[1752572567600,0.99017384,678.61,677.85,1.24944875]
[1752572568301,0.99017384,678.62,677.85,1.24944875]
[1752572568501,0.99017384,678.6,677.86,0.99292414]
[1752572569401,0.99017384,678.61,677.86,0.99292414]
[1752572570101,0.99017384,678.6,677.86,0.99292414]
[1752572570398,0.99017384,678.61,677.85,1.24944875]
[1752572571204,0.99017384,678.6,677.85,1.24944875]
[1752572571507,0.99017384,678.61,677.85,1.24944875]
[1752572571708,0.99017384,678.59,677.85,0.25652461]
[1752572572109,0.99017384,678.56,677.85,1.24944875]
[1752572572406,0.98907393,678.56,677.85,1.24856991]
[1752572573306,0.98907393,678.57,677.85,1.24856991]
[1752572576214,0.98907393,678.52,677.88,0.9920453]
[1752572576810,0.98907393,678.55,677.86,0.9920453]
[1752572579414,0.98907393,678.54,677.87,0.9920453]
[1752572580214,0.98907393,678.55,677.86,0.9920453]
[1752572582212,0.98907393,678.55,677.85,0.25652461]
[1752572582213,0.98907393,678.55,677.85,1.24856991]
[1752572582517,0.98907393,678.52,677.82,0.9920453]
[1752572582718,0.98907393,678.5,677.81,0.9920453]
[1752572583215,0.98907393,678.51,677.8,0.9920453]
[1752572583418,0.98907393,678.5,677.8,0.9920453]
[1752572583614,1.31435911,678.67,677.8,0.9920453]
[1752572583615,0.98907393,678.51,677.8,0.9920453]
[1752572585416,0.98907393,678.51,677.79,0.9920453]
[1752572585819,0.98907393,678.52,677.8,0.9920453]
[1752572586322,0.98907393,678.52,677.79,0.9920453]
[1752572586522,0.98907393,678.55,677.77,0.9920453]
[1752572586918,0.98907393,678.54,677.78,0.9920453]
[1752572587718,0.98907393,678.53,677.78,0.9920453]
[1752572588321,0.98907393,678.54,677.78,0.9920453]
[1752572589321,0.98907393,678.54,677.77,0.9920453]
[1752572590024,0.98907393,678.53,677.78,0.9920453]
[1752572590419,0.98907393,678.53,677.75,0.25656054]
[1752572590420,0.98907393,678.53,677.77,0.9920453]
[1752572591125,0.98907393,678.51,677.75,1.24860584]
[1752572591421,0.98907393,678.54,677.75,0.25656054]
[1752572593229,0.98907393,678.53,677.75,0.25656054]
[1752572594124,0.98907393,678.54,677.75,0.25656054]
[1752572596225,0.98907393,678.52,677.75,0.25656054]
[1752572596429,0.98907393,678.55,677.75,0.25656054]
[1752572598929,0.98907393,678.54,677.75,0.25656054]
[1752572601332,0.98907393,678.52,677.75,0.25656054]
[1752572601537,0.98907393,678.55,677.75,0.25656054]
[1752572603333,0.98907393,678.54,677.75,0.25656054]
[1752572603634,0.98907393,678.55,677.75,0.25656054]
[1752572604137,0.98907393,678.54,677.75,0.25656054]
[1752572606338,0.98907393,678.52,677.75,0.25656054]
[1752572607842,0.98907393,678.53,677.75,0.25656054]
[1752572610039,0.98907393,678.52,677.75,0.25656054]
[1752572611245,0.98907393,678.52,677.75,1.24860584]
[1752572611442,0.98907393,678.49,677.77,0.9920453]
[1752572613240,0.98907393,678.48,677.77,0.9920453]
[1752572614041,0.98907393,678.48,677.78,0.9920453]
[1752572614242,0.98907393,678.46,677.79,0.9920453]
[1752572616245,0.98907393,678.45,677.8,0.9920453]
[1752572617345,0.98907393,678.44,677.81,0.9920453]
[1752572617848,0.98907393,678.41,677.83,0.9920453]
[1752572618147,0.98907393,678.4,677.83,0.9920453]
[1752572618444,0.98907393,678.4,677.84,0.9920453]
[1752572619249,0.98907393,678.39,677.85,0.9920453]
[1752572620450,0.98907393,678.38,677.85,0.9920453]
[1752572620750,0.98907393,678.38,677.75,0.25656054]
[1752572620751,0.98907393,678.39,677.86,0.9920453]
[1752572621050,0.98907393,678.38,677.86,0.9920453]
[1752572622249,0.98907393,678.37,677.87,0.9920453]
[1752572622946,0.98907393,678.36,677.87,0.9920453]
[1752572624247,0.98907393,678.35,677.88,0.9920453]
[1752572625348,0.98907393,678.34,677.89,0.9920453]
[1752572625750,0.98907393,678.36,677.88,0.9920453]
[1752572626647,0.98907393,678.41,677.82,0.9920453]
[1752572627348,0.98907393,678.4,677.83,0.9920453]
[1752572631252,0.98907393,678.39,677.83,0.9920453]
[1752572633049,0.98907393,678.4,677.84,0.9920453]
[1752572633254,0.98907393,678.39,677.84,0.9920453]
[1752572635456,0.98907393,678.46,677.79,0.9920453]
[1752572636251,0.98907393,678.46,677.75,0.25656054]
[1752572636252,0.98907393,678.46,677.8,0.9920453]
[1752572636456,0.98907393,678.45,677.81,0.9920453]
[1752572637257,0.98907393,678.44,677.81,0.9920453]
[1752572641157,0.98907393,678.43,677.82,0.9920453]
[1752572641357,0.98907393,678.4,677.78,0.9920453]
[1752572641558,0.98907393,678.39,677.79,0.9920453]
[1752572643864,0.98907393,678.38,677.77,0.9920453]
[1752572644062,0.98907393,678.39,677.76,0.9920453]
[1752572645161,0.98907393,678.33,677.8,0.9920453]
[1752572645365,0.98907393,678.34,677.79,0.9920453]
[1752572646664,0.98907393,678.37,677.77,0.9920453]
[1752572648263,0.98907393,678.38,677.77,0.9920453]
[1752572648468,0.98907393,678.36,677.78,0.9920453]
[1752572651271,0.98907393,678.36,677.77,0.9920453]
[1752572651669,0.98907393,678.39,677.76,0.9920453]
[1752572653278,0.98907393,678.47,677.71,0.9920453]
[1752572653477,0.98907393,678.46,677.71,0.9920453]
[1752572661379,0.98907393,678.51,677.68,0.9920453]
[1752572661779,0.98907393,678.5,677.68,0.9920453]
[1752572663081,0.98907393,678.44,677.67,0.9920453]
[1752572665179,0.98907393,678.44,677.66,0.9920453]
[1752572665383,0.98907393,678.44,677.67,0.9920453]
[1752572665677,0.98907393,678.41,677.68,0.9920453]
[1752572669386,0.98907393,678.42,677.68,0.9920453]
[1752572671388,0.98907393,678.35,677.72,0.9920453]
[1752572671582,0.98907393,678.31,677.75,0.9920453]
[1752572672084,0.98907393,678.3,677.75,0.9920453]
[1752572674886,0.98907393,678.29,677.75,0.9920453]
[1752572675688,0.98907393,678.29,677.76,0.9920453]
[1752572676186,0.98907393,678.29,677.75,0.9920453]
[1752572676390,0.98907393,678.3,677.74,0.9920453]
[1752572676687,0.98907393,678.34,677.72,0.9920453]
[1752572679295,0.98907393,678.33,677.73,0.9920453]
[1752572680189,0.98907393,678.34,677.73,0.9920453]
[1752572680390,0.98907393,678.33,677.73,0.9920453]
[1752572681792,0.98907393,678.36,677.71,0.9920453]
[1752572683094,0.98907393,678.36,677.72,0.9920453]
[1752572686298,0.98907393,678.35,677.72,0.9920453]
[1752572686594,0.98907393,678.33,677.74,0.9920453]
[1752572686793,0.98907393,678.36,677.72,0.9920453]
[1752572690299,0.98907393,678.35,677.73,0.9920453]
[1752572691600,0.98907393,678.32,677.74,0.9920453]
[1752572691900,0.98907393,678.36,677.72,0.9920453]
[1752572692500,0.98907393,678.35,677.73,0.9920453]
[1752572692795,0.98907393,678.32,677.7,0.9920453]
[1752572695204,0.98907393,678.31,677.7,0.9920453]
[1752572696701,0.98907393,678.29,677.72,0.9920453]
[1752572696902,0.98907393,678.31,677.7,0.9920453]
[1752572701709,0.98907393,678.29,677.72,0.9920453]
[1752572702007,0.98907393,678.31,677.7,0.9920453]
[1752572702206,0.98907393,678.31,677.71,0.9920453]
[1752572704905,0.98907393,678.31,677.7,0.9920453]
[1752572705311,0.98907393,678.32,677.7,0.9920453]
[1752572705605,0.98907393,678.31,677.7,0.9920453]
[1752572706910,0.98907393,678.33,677.69,0.9920453]
[1752572711722,0.98907393,678.31,677.7,0.9920453]
[1752572713317,0.98907393,678.31,677.71,0.9920453]
[1752572713521,0.98907393,678.31,677.7,0.9920453]
[1752572714721,0.98907393,678.31,677.71,0.9920453]
[1752572716221,0.25645372,678.89,677.71,0.9920453]
[1752572716222,0.98907393,678.3,677.71,0.9920453]
[1752572716719,0.98907393,678.28,677.72,0.9920453]
[1752572716919,0.98907393,678.24,677.75,0.9920453]
[1752572717319,0.98907393,678.24,677.76,0.9920453]
[1752572720825,0.98907393,678.24,677.75,0.9920453]
[1752572721224,0.98907393,678.27,677.74,0.9920453]
[1752572721927,0.98907393,678.26,677.74,0.9920453]
[1752572722628,0.98907393,678.25,677.75,0.9920453]
[1752572728030,0.98907393,678.24,677.75,0.9920453]
[1752572728426,0.98907393,678.22,677.76,0.9920453]
[1752572728626,0.98907393,678.26,677.74,0.9920453]
[1752572730628,0.98907393,678.27,677.73,0.9920453]
[1752572730828,0.98907393,678.27,677.74,0.9920453]
[1752572731028,0.25662014,678.47,677.74,0.9920453]
[1752572731029,0.98907393,678.28,677.74,0.9920453]
[1752572731929,0.98907393,678.27,677.74,0.9920453]
[1752572738439,0.98907393,678.24,677.76,0.9920453]
[1752572739141,0.98907393,678.23,677.77,0.9920453]
[1752572740542,0.98907393,678.2,677.79,0.9920453]
[1752572741037,0.98907393,678.18,677.8,0.9920453]
[1752572742542,0.25662014,678.47,677.77,0.9920453]
[1752572742543,0.98907393,678.23,677.77,0.9920453]
[1752572743143,0.98907393,678.24,677.76,0.9920453]
[1752572745643,0.98907393,678.25,677.76,0.9920453]
[1752572745943,0.98907393,678.24,677.76,0.9920453]
[1752572746142,0.98907393,678.25,677.76,0.9920453]
[1752572746345,0.98907393,678.24,677.76,0.9920453]
[1752572746742,0.98907393,678.25,677.76,0.9920453]
[1752572747246,0.98907393,678.24,677.76,0.9920453]
[1752572750349,0.98907393,678.24,677.77,0.9920453]
[1752572751548,0.98907393,678.21,677.79,0.9920453]
[1752572752052,0.98907393,678.19,677.8,0.9920453]
[1752572752352,0.98907393,678.26,677.76,0.9920453]
[1752572758960,0.98907393,678.25,677.76,0.9920453]
[1752572761363,0.98907393,678.25,677.65,0.256605]
[1752572761364,0.98907393,678.23,677.78,0.9920453]
[1752572761760,0.98907393,678.21,677.79,0.9920453]
[1752572762361,0.98907393,678.19,677.8,0.9920453]
[1752572762664,0.98907393,678.18,677.81,0.9920453]
[1752572762964,0.98907393,678.17,677.81,0.9920453]
[1752572763960,0.98907393,678.17,677.82,0.9920453]
[1752572764166,0.98907393,678.17,677.81,0.9920453]
[1752572764362,0.98907393,678.18,677.81,0.9920453]
[1752572765165,0.98907393,678.21,677.79,0.9920453]
[1752572768364,0.98907393,678.21,677.78,0.9920453]
[1752572768669,0.98907393,678.22,677.78,0.9920453]
[1752572773375,0.98907393,678.28,677.84,0.9920453]
[1752572774071,0.98907393,678.26,677.86,0.9920453]
[1752572774378,0.98907393,678.27,677.85,0.9920453]
[1752572775375,0.98907393,678.28,677.84,0.9920453]
[1752572778276,0.98907393,678.26,677.85,0.9920453]
[1752572778571,0.98907393,678.28,677.84,0.9920453]
[1752572779475,0.98907393,678.28,677.83,0.9920453]
[1752572779676,0.98907393,678.28,677.84,0.9920453]
[1752572781374,0.98907393,678.28,677.71,1.31886276]
[1752572781375,0.98907393,678.28,677.83,0.9920453]
[1752572785589,0.98907393,678.29,677.82,0.9920453]
[1752572787486,0.98907393,678.3,677.82,0.9920453]
[1752572788083,0.98907393,678.29,677.83,0.9920453]
[1752572789986,0.98907393,678.31,677.81,0.9920453]
[1752572791490,0.98907393,678.32,677.81,0.9920453]
[1752572791690,0.25660405,678.54,677.79,0.9920453]
[1752572791691,0.98907393,678.33,677.79,0.9920453]
[1752572791890,0.98907393,678.32,677.79,0.9920453]
[1752572792090,0.98907393,678.31,677.8,0.9920453]
[1752572792286,0.98907393,678.36,677.77,0.9920453]
[1752572792487,0.98907393,678.35,677.77,0.9920453]
[1752572793993,0.25660405,678.54,677.65,0.256605]
[1752572793994,0.98907393,678.3,677.72,0.9920453]
[1752572794195,0.98907393,678.29,677.71,0.9920453]
[1752572794894,0.98907393,678.27,677.69,0.9920453]
[1752572795090,0.98907393,678.25,677.67,0.9920453]
[1752572795394,0.98907393,678.24,677.66,0.9920453]
[1752572797291,0.98907393,678.25,677.66,0.9920453]
[1752572797996,0.98907393,678.24,677.66,0.9920453]
[1752572799199,0.98907393,678.24,677.67,0.9920453]
[1752572799394,0.98907393,678.24,677.66,0.9920453]
[1752572799997,0.98907393,678.23,677.67,0.9920453]
[1752572800894,0.98907393,678.19,677.67,0.9920453]
[1752572801093,0.98907393,678.19,677.7,0.9920453]
[1752572801399,0.98907393,678.19,677.69,0.9920453]
[1752572802297,0.98907393,678.19,677.7,0.9920453]
[1752572803202,0.98907393,678.2,677.69,0.9920453]
[1752572803403,0.98907393,678.21,677.68,0.9920453]
[1752572803902,0.98907393,678.21,677.69,0.9920453]
[1752572804504,0.98907393,678.23,677.67,0.9920453]
[1752572804999,0.98907393,678.24,677.67,0.9920453]
[1752572805999,0.98907393,678.23,677.67,0.9920453]
[1752572806399,0.98907393,678.24,677.67,0.9920453]
[1752572806900,0.98907393,678.23,677.67,0.9920453]
[1752572807405,0.98907393,678.24,677.67,0.9920453]
[1752572811309,0.98907393,678.27,677.65,1.2486503]
[1752572811906,0.98907393,678.25,677.66,0.9920453]
[1752572812910,0.98907393,678.37,677.65,0.256605]
[1752572813107,0.98907393,678.38,677.65,0.256605]
[1752572813705,0.98907393,678.37,677.65,0.256605]
[1752572813911,0.98907393,678.19,677.71,0.9920453]
[1752572814111,0.98907393,678.19,677.7,0.9920453]
[1752572814407,0.98907393,678.19,677.71,0.9920453]
[1752572815012,0.98907393,678.2,677.7,0.9920453]
[1752572816010,0.98907393,678.21,677.69,0.9920453]
[1752572817014,0.98907393,678.21,677.7,0.9920453]
[1752572817215,0.98907393,678.25,677.74,0.9920453]
[1752572817713,0.98907393,678.27,677.75,0.9920453]
[1752572819108,0.98907393,678.28,677.76,0.9920453]
[1752572819810,0.98907393,678.31,677.79,0.9920453]
[1752572823512,0.98907393,678.31,677.78,0.9920453]
[1752572823817,0.98907393,678.31,677.79,0.9920453]
[1752572824920,0.98907393,678.29,677.8,0.9920453]
[1752572825315,0.98907393,678.3,677.8,0.9920453]
[1752572825819,0.98907393,678.29,677.8,0.9920453]
[1752572826818,0.98907393,678.3,677.8,0.9920453]
[1752572827522,0.98907393,678.3,677.79,0.9920453]
[1752572828419,0.98907393,678.3,677.8,0.9920453]
[1752572828922,0.98907393,678.29,677.8,0.9920453]
[1752572829324,0.98907393,678.3,677.8,0.9920453]
[1752572829524,0.98907393,678.31,677.79,0.9920453]
[1752572830622,0.98907393,678.32,677.78,0.9920453]
[1752572830829,0.98907393,678.31,677.78,0.9920453]
[1752572835233,0.98907393,678.32,677.77,0.9920453]
[1752572835431,0.98907393,678.32,677.78,0.9920453]
[1752572836233,0.98907393,678.32,677.77,0.9920453]
[1752572837233,0.98907393,678.33,677.76,0.9920453]
[1752572837437,0.98907393,678.37,677.73,0.9920453]
[1752572837735,0.98907393,678.36,677.72,0.9920453]
[1752572838434,0.98907393,678.43,677.67,0.9920453]
[1752572840436,0.98907393,678.42,677.68,0.9920453]
[1752572842240,0.25660405,678.54,677.65,1.2486503]
[1752572842241,0.98907393,678.46,677.65,1.2486503]
[1752572847341,0.98907393,678.46,677.66,0.9920453]
[1752572848546,0.98907393,678.43,677.68,0.9920453]
[1752572849347,0.25660405,678.54,677.65,0.256605]
[1752572849547,0.98868075,678.43,677.68,0.99345278]
[1752572850249,0.98868075,678.42,677.68,0.99345278]
[1752572850748,0.98868075,678.4,677.7,0.99345278]
[1752572852152,0.98868075,678.34,677.74,0.99345278]
[1752572852351,0.98868075,678.33,677.74,0.99345278]
[1752572854754,0.98868075,678.34,677.74,0.99345278]
[1752572854954,0.98868075,678.33,677.74,0.99345278]
[1752572857256,0.98868075,678.34,677.74,0.99345278]
[1752572857856,0.98868075,678.35,677.73,0.99345278]
[1752572858152,0.98868075,678.34,677.73,0.99345278]
[1752572859159,0.98868075,678.33,677.72,0.99345278]
[1752572859356,0.98868075,678.33,677.65,0.256605]
[1752572859357,0.98868075,678.33,677.73,0.99345278]
[1752572859557,0.98868075,678.3,677.71,0.99345278]
[1752572859760,0.98868075,678.3,677.7,0.99345278]
[1752572859955,0.98868075,678.28,677.68,0.99345278]
[1752572860155,0.98868075,678.25,677.65,1.25005778]
[1752572861155,0.98868075,678.24,677.66,0.99345278]
[1752572861859,0.98868075,678.22,677.65,0.256605]
[1752572867065,0.98868075,678.22,677.64,0.99345278]
[1752572867265,0.98868075,678.19,677.66,0.99345278]
[1752572867461,0.98868075,678.24,677.63,0.99345278]
[1752572868366,0.98868075,678.24,677.62,0.99345278]
[1752572870066,0.98868075,678.2,677.58,0.99345278]
[1752572870363,0.98888216,678.2,677.58,0.9936769]
[1752572870665,0.98888216,678.18,677.56,0.9936769]
[1752572871165,0.98888216,678.19,677.56,0.9936769]
[1752572871367,0.98888216,678.23,677.53,0.9936769]
[1752572871566,0.98888216,678.24,677.53,0.9936769]
[1752572871767,0.98888216,678.23,677.52,0.9936769]
[1752572872364,0.98888216,678.24,677.52,0.9936769]
[1752572872666,0.98888216,678.23,677.52,0.9936769]
[1752572873069,0.98888216,678.24,677.52,0.9936769]
[1752572873465,0.98888216,678.24,677.51,0.9936769]
[1752572875169,0.98888216,678.23,677.49,0.9936769]
[1752572875370,0.98888216,678.19,677.45,0.9936769]
[1752572875570,0.98888216,678.2,677.45,0.9936769]
[1752572876070,0.98888216,678.2,677.44,0.9936769]
[1752572876472,0.98888216,678.19,677.42,0.9936769]
[1752572876772,0.98888216,678.13,677.36,0.9936769]
[1752572877273,0.98888216,678.13,677.35,0.25670343]
[1752572877274,0.98888216,678.15,677.35,1.25038033]
[1752572877472,0.98888216,678.16,677.35,0.25670343]
[1752572878670,0.98888216,678.17,677.35,0.25670343]
[1752572879474,0.98888216,678.18,677.35,0.25670343]
[1752572880375,0.98888216,678.15,677.35,0.25670343]
[1752572881470,0.98888216,678.1,677.35,0.25670343]
[1752572882376,0.98888216,678.07,677.22,0.9936769]
[1752572882579,0.98888216,677.97,677.19,0.25676972]
[1752572883474,0.98888216,677.98,677.19,0.25676972]
[1752572883675,0.98888216,677.99,677.19,0.25676972]
[1752572884076,0.98888216,678.0,677.19,0.25676972]
[1752572884380,0.98888216,678.01,677.19,0.25676972]
[1752572884580,0.98888216,678.05,677.19,1.25044662]
[1752572885181,0.98888216,678.04,677.19,1.25044662]
[1752572885379,0.98888216,678.05,677.19,0.25676972]
[1752572885779,0.98888216,678.04,677.19,0.25676972]
[1752572886281,0.98888216,678.05,677.19,1.25044662]
[1752572886476,0.98888216,678.07,677.19,0.25676972]
[1752572887381,0.98888216,678.03,677.2,0.9936769]
[1752572887578,0.98888216,678.04,677.19,1.25044662]
[1752572887781,0.98888216,678.06,677.21,0.9936769]
[1752572888478,0.98888216,678.06,677.2,0.9936769]
[1752572889584,0.98888216,678.07,677.19,1.25044662]
[1752572891681,0.98888216,678.07,677.19,0.25676972]
[1752572892682,0.98888216,678.05,677.19,0.25676972]
[1752572896384,0.98888216,678.06,677.19,0.25676972]
[1752572896886,0.98888216,678.05,677.19,0.25676972]
[1752572897089,0.98888216,678.06,677.19,0.25676972]
[1752572897385,1.97153866,678.34,677.19,0.25676972]
[1752572897386,0.98888216,678.11,677.19,0.25676972]
[1752572900392,0.98888216,678.12,677.19,0.25676972]
[1752572900594,0.98888216,678.11,677.19,0.25676972]
[1752572902095,0.98888216,678.09,677.19,0.25676972]
[1752572902295,0.98888216,678.05,677.19,0.25676972]
[1752572902595,0.98888216,678.08,677.19,0.25676972]
[1752572902796,0.98888216,678.05,677.19,0.25676972]
[1752572903995,0.98888216,678.02,677.19,0.25676972]
[1752572907398,0.98888216,678.05,677.19,0.25676972]
[1752572908594,0.98888216,678.04,677.19,0.25676972]
[1752572909999,0.98888216,678.01,677.19,0.25676972]
[1752572911599,0.98888216,677.95,677.19,0.25676972]
[1752572912300,0.98888216,677.96,677.19,0.25676972]
[1752572912899,0.98888216,677.98,677.19,0.25676972]
[1752572914101,0.25660405,678.54,677.19,0.25676972]
[1752572914102,0.98888216,678.0,677.19,0.25676972]
[1752572914398,0.98888216,677.99,677.19,0.25676972]
[1752572914601,1.31435911,678.14,677.19,0.25676972]
[1752572914602,0.98888216,678.01,677.19,0.25676972]
[1752572915997,0.98888216,678.05,677.19,0.25676972]
[1752572916401,0.98888216,678.04,677.19,0.25676972]
[1752572916601,0.98888216,678.07,677.19,0.25676972]
[1752572917603,0.98888216,678.06,677.19,0.25676972]
[1752572919500,0.98888216,678.05,677.19,0.25676972]
[1752572919902,0.98888216,678.04,677.19,0.25676972]
[1752572921701,0.98888216,678.02,677.19,0.25676972]
[1752572921901,0.98888216,678.03,677.19,0.25676972]
[1752572922102,0.98888216,678.06,677.2,0.9936769]
[1752572922402,0.98888216,678.06,677.19,0.25676972]